Cogmind - Beta 13 @@@ ROGUE MODE // 2024.05.10 @ 21:55:53 Player: Bace Troncons Result: Destroyed by HV-WBR(R) with Subdweller Laser Performance ------------- Evolutions (0) 0 Regions Visited (2) 400 Robots Destroyed (30) 150 Value Destroyed (729) 729 Prototype IDs (2) 40 Alien Tech Used (0) 0 Bonus (-101) -101 TOTAL SCORE: 1218 Bonus ------- Follower Combat Kills 7 Friendly Fire -108 Cogmind --------- Core Integrity 0/250 Matter 168/300 Energy 96/100 System Corruption 1% Temperature Cool (17) Movement Treading (160) Location -10/Subcaves Parts ------- > --- POWER (1) -------- (None) > --- PROPULSION (2) --- Light Treads Light Treads > --- UTILITY (2) ------ Large Storage Unit Structural Scanner > --- WEAPON (2) ------- Light Cannon Light Cannon > --- INVENTORY (15) --- Light Ion Engine Light Ion Engine Light Nuclear Core Aluminum Leg Aluminum Leg Small Storage Unit Medium Storage Unit Sensor Array Terrain Scanner Hacking Suite Light Cannon Grenade Launcher Dirty Datajack (16) Scrap Shield Fragment (49) Scrap Shield Fragment (48) Peak State ------------ > --- POWER ------------ Ion Engine > --- PROPULSION ------- Light Treads Light Treads > --- UTILITY ---------- Large Storage Unit Sensor Array > --- WEAPON ----------- Light Cannon Dirty Datajack > --- INVENTORY -------- Light Ion Engine Light Ion Engine Light Nuclear Core Aluminum Leg Aluminum Leg Small Storage Unit Medium Storage Unit Structural Scanner Terrain Scanner Hacking Suite Light Cannon Light Cannon Grenade Launcher Scrap Shield Fragment Scrap Shield Fragment [Rating: 14] Favorites ----------- Power Ion Engine Engine Ion Engine Propulsion Light Treads Treads Light Treads Utility Large Storage Unit Device Sensor Array Storage Large Storage Unit Weapon Light Cannon Energy Gun EM Pulse Gun Ballistic Gun Assault Rifle Ballistic Cannon Light Cannon Launcher Grenade Launcher Special Melee Weapon Dirty Datajack Build | -11 -10 -10 ------- Run | Yrd Mat Sub Slots Evolved . | . . . Power . | . . . Propulsion . | . . . Utility . | . . . Weapon . | . . . Parts Attached 23 | 6 11 6 Power 5 | 1 3 1 Engine 5 | 1 3 1 Core . | . . . Reactor . | . . . Propulsion 3 | 2 1 . Treads 3 | 2 1 . Leg . | . . . Wheel . | . . . Hover . | . . . Flight . | . . . Utility 6 | 1 3 2 Device 3 | . 1 2 Storage 3 | 1 2 . Processor . | . . . Hackware . | . . . Protection . | . . . Artifact . | . . . Weapon 9 | 2 4 3 Energy Gun 1 | 1 . . Energy Cannon . | . . . Ballistic Gun 1 | 1 . . Ballistic Cannon 5 | . 3 2 Launcher 1 | . 1 . Special Weapon . | . . . Impact Weapon . | . . . Slashing Weapon . | . . . Piercing Weapon . | . . . Special Melee Weapon 1 | . . 1 Unidentified Prototypes . | . . . Parts Lost 7 | . 4 3 Power 4 | . 2 2 Propulsion . | . . . Utility . | . . . Weapon 3 | . 2 1 Highest Loss Streak 2 | . 2 2 To Critical Strikes . | . . . Average Slot Usage (%) 95 | . 92 99 Engine 13 | . 13 13 Treads 27 | . 27 28 Device 12 | . 10 14 Storage 14 | . 14 14 Ballistic Gun 4 | . 7 . Ballistic Cannon 20 | . 15 27 Naked Turns . | . . . Heaviest Build 40 | 14 40 32 Greatest Support 40 | 40 40 40 Greatest Overweight (x) 3 | 3 . . Average Overweight (x) . | . . . Largest Inventory Capacity 15 | 8 15 15 Average Capacity 14 | 7 14 15 Most Carried 15 | 4 15 15 Average Carried 12 | 2 11 14 Final Capacity 15 | 8 15 15 Final Carried 15 | 3 14 15 Class Distribution -------------------- 100% | Mutant Dominant Class ---------------- Mutant | -10/Materials Mutant | -10/Subcaves Resources | -11 -10 -10 ----------- Run | Yrd Mat Sub Matter Collected 893 | 227 507 159 Remotely . | . . . Salvage Created 760 | . 662 98 Parts 46 | . 35 11 Haulers Intercepted 2 | . 2 . Recyclers Shooed . | . . . Parts Field Recycled . | . . . Retrieved Matter . | . . . Parts Self-Destructed 5 | . . 5 Prevented . | . . . Kills | -11 -10 -10 ------- Run | Yrd Mat Sub Combat Hostiles Destroyed 20 | . 15 5 Guns 1 | . 1 . Cannons 18 | . 13 5 AOE 1 | . 1 . Classes Destroyed 8 | . 7 1 Builder 1 | . 1 . Hauler 2 | . 2 . Recycler 2 | . 2 . Operator 2 | . 2 . Watcher 2 | . 2 . Swarmer 5 | . 3 2 Grunt 12 | . 12 . Subdweller 4 | . . 4 Best Kill Streak 5 | . 5 2 Combat Bots Only 4 | . 4 2 Max Kills in Single Turn 2 | . 2 1 Gunslinging . | . . . Exploded 1 | . 1 . Melee . | . . . Uniques/NPCs Destroyed . | . . . Combat | -11 -10 -10 -------- Run | Yrd Mat Sub Hostile Shots Fired 128 | . 83 45 Missed 39 | . 29 10 Damage Taken 1311 | . 748 563 Core 260 | . 115 145 Absorbed by Shields . | . . . Regen/Repaired (Parts) 118 | . 118 . Core Remaining (%) 100 | 100 . . Volleys Fired 91 | . 61 30 Largest 2 | . 2 2 Hottest 70 | . 70 70 Shots Fired 154 | . 97 57 Gun 33 | . 33 . Cannon 117 | . 60 57 Launcher 4 | . 4 . Special . | . . . Kinetic 150 | . 93 57 Thermal . | . . . Explosive 4 | . 4 . Electromagnetic . | . . . Robot Hit Streak 15 | . 10 15 Robot Miss Streak 3 | . 3 3 Penetration Max . | . . . Secondary Targets . | . . . Shots Hit Robots 90 | . 54 36 Core Hits 44 | . 34 10 Critical Kills . | . . . Critical Parts Destroyed . | . . . Critical Strikes 5 | . 4 1 Blast 5 | . 4 1 Melee Attacks 4 | . . 4 Impact . | . . . Slashing . | . . . Piercing 4 | . . 4 Sneak Attacks 1 | . . 1 Combat Hostiles 1 | . . 1 Follow-up Attacks . | . . . Damage Inflicted 1683 | . 1260 423 Guns 177 | . 177 . Cannons 1069 | . 658 411 Explosions 425 | . 425 . Melee 12 | . . 12 Ramming . | . . . Kinetic 1246 | . 835 411 Thermal . | . . . Explosive 425 | . 425 . Electromagnetic . | . . . Impact . | . . . Slashing . | . . . Piercing 12 | . . 12 Highest Corruption 1 | . 1 1 Average Corruption 1 | . 1 1 Corruption Purged . | . . . Corruption Blocked . | . . . Effects 12 | . 4 8 Message Errors 6 | . 4 2 Matter Fused 2 | . . 2 Heat Flow Errors 2 | . . 2 Energy Discharges 1 | . . 1 Misfires 1 | . . 1 Overload Shots . | . . . Overflow Damage 1 | . 1 . Projectiles . | . . . Explosions 1 | . 1 . Melee . | . . . Knockbacks 14 | . 9 5 Impact . | . . . Kinetic 14 | . 9 5 Secondary . | . . . Self-Inflicted Damage 40 | . 40 . Shots 2 | . 2 . Rammed . | . . . Targets Rammed . | . . . Kicked . | . . . Crushed . | . . . Highest Temperature 150 | . 27 150 Average Temperature 21 | . 8 78 Received Heat Transfer 402 | . 282 120 Siege Activations . | . . . Robots Corrupted . | . . . Combat Hostiles . | . . . Parts Fried . | . . . Impact Corruptions . | . . . Robots Melted . | . . . Combat Hostiles . | . . . Parts Melted . | . . . Heat Transferred . | . . . Parts Sabotaged . | . . . Parts Stolen . | . . . Parts Stripped . | . . . Power Chain Reactions . | . . . Alert | -11 -10 -10 ------- Run | Yrd Mat Sub Peak Influence 299 | . 299 . Initial . | . . . Average 115 | . 122 . Maximum Alert Level 1 | . 1 . Low Security (%) 89 | 100 89 . Level 1 10 | . 10 . Level 2 . | . . . Level 3 . | . . . Level 4 . | . . . Level 5 . | . . . High Security . | . . . Max Security . | . . . Squads Dispatched 3 | . 3 . Investigation 1 | . 1 . Extermination . | . . . Reinforcement 2 | . 2 . Assault . | . . . Garrison . | . . . Intercept . | . . . Searches Triggered . | . . . Construction Impeded . | . . . Haulers Reinforced . | . . . Active Scanning Responses . | . . . Cargo Convoy Interrupts . | . . . Stealth | -11 -10 -10 --------- Run | Yrd Mat Sub Distress Signals 1 | . 1 . Communications Jammed . | . . . Distress Signals . | . . . Times Spotted 38 | . 28 10 Peak Tracking Total 5 | . 5 3 Tactical Retreats 2 | . 2 . Traps | -11 -10 -10 ------- Run | Yrd Mat Sub Traps Triggered 2 | . 2 . Indirectly . | . . . Trap Hack Attempts . | . . . Triggered . | . . . Disarmed . | . . . Reprogrammed . | . . . Reused . | . . . Traps Extracted . | . . . Installed . | . . . Triggered . | . . . Machines | -11 -10 -10 ---------- Run | Yrd Mat Sub Machines Disabled 1 | . 1 . Max in Single Turn 1 | . 1 . Machines Repaired . | . . . Machines Dismantled . | . . . Machines Sabotaged . | . . . Overloaded Fab Kills . | . . . Hacking | -11 -10 -10 --------- Run | Yrd Mat Sub Machines Accessed 5 | . 5 . Terminals 4 | . 4 . Fabricators . | . . . Repair Stations 1 | . 1 . Recycling Units . | . . . Scanalyzers . | . . . Garrison Access . | . . . Total Hacks 11 | . 11 . Successful 7 | . 7 . Failed 4 | . 4 . Catastrophic . | . . . Database Lockouts . | . . . Manual 2 | . 2 . Terminals 8 | . 8 . Fabricators . | . . . Repair Stations 3 | . 3 . Recycling Units . | . . . Scanalyzers . | . . . Garrison Access . | . . . Terminal Hacks 5 | . 5 . Robot Analysis 1 | . 1 . Prototype ID Bank 1 | . 1 . Locate Traps 1 | . 1 . Dispatch Records 1 | . 1 . Hauler Manifests 1 | . 1 . Fabricator Hacks . | . . . Repair Station Hacks 2 | . 2 . Scan Component 1 | . 1 . Repair 1 | . 1 . Recycling Unit Hacks . | . . . Scanalyzer . | . . . Garrison Access Hacks . | . . . Unauthorized Hacks . | . . . Terminals . | . . . Fabricators . | . . . Repair Stations . | . . . Recycling Units . | . . . Scanalyzers . | . . . Garrison Access . | . . . Data Cores Recovered . | . . . Used . | . . . Hacking Detections 3 | . 3 . Full Trace Events . | . . . Feedback Events . | . . . Feedback Blocked . | . . . Robot Schematics Acquired . | . . . Robots Built . | . . . Authchips . | . . . Time . | . . . Total Robot Build Rating . | . . . Part Schematics Acquired . | . . . Parts Built . | . . . Authchips . | . . . Time . | . . . Total Part Build Rating . | . . . Parts Repaired 1 | . 1 . Time 13 | . 13 . Parts Recycled . | . . . Recycled Matter . | . . . Retrieved Matter . | . . . Retrieved Components . | . . . Parts Scanalyzed . | . . . Part Schematics Acquired . | . . . Parts Damaged . | . . . Bothacking | -11 -10 -10 ------------ Run | Yrd Mat Sub Used RIF Installer . | . . . Robots Hacked . | . . . Non-combat . | . . . Combat . | . . . Robot Hacks Applied . | . . . Relay Couplers Released . | . . . Fabnet Peak Effective % . | . . . Robots Rewired . | . . . Allies Hacked . | . . . Hacks Repelled . | . . . Allies | -11 -10 -10 -------- Run | Yrd Mat Sub Total Allies 2 | . . 2 Largest Group 1 | . . 1 Highest-Rated Group 5 | . . 5 Highest-Rated Ally 5 | . . 5 Total Orders . | . . . Ally Attacks 1 | . . 1 Total Damage 9 | . . 9 Kills 1 | . . 1 Allies Corrupted . | . . . Allies Melted . | . . . Intel | -11 -10 -10 ------- Run | Yrd Mat Sub Robot Analysis Total 1 | . 1 . Derelict Logs Recovered . | . . . Drone Launches . | . . . Drone Recoveries . | . . . Exploration | -11 -10 -10 ------------- Run | Yrd Mat Sub Turns Passed 2353 | 79 1277 997 Spaces Moved 932 | 44 579 309 Core 8 | 8 . . Treads 924 | 36 579 309 Legs . | . . . Wheels . | . . . Hover . | . . . Flight . | . . . Fastest Speed 50 | 50 160 160 Average Speed 159 | 151 160 160 Slowest Speed 200 | 200 160 160 Overloaded Moves . | . . . Propulsion Burnouts . | . . . Robots Hopped . | . . . Cave-ins Triggered . | . . . Exploration Rate (%) 38 | 3 94 18 Regions Visited 2 Branch Regions 1 Pre-discovered Areas . | . . . Known Exits Taken . | . . . Unknown Exits Taken 2 | 1 1 . Scrap Searched . | . . . Spaces Dug . | . . . Terrain Destroyed 12 | . 12 . Melee . | . . . Projectile . | . . . AOE 12 | . 12 . Terrain Rammed . | . . . Walls Destroyed . | . . . Machines Disabled . | . . . Actions | -11 -10 -10 --------- Run | Yrd Mat Sub Total 1643 | 54 831 758 Wait 570 | 1 165 404 Move 930 | 43 578 309 Hop . | . . . Pick Up 20 | 4 12 4 Fast Attach 10 | 5 5 . Attach 6 | 1 3 2 Detach 2 | . 2 . Swap 7 | . 3 4 Drop 3 | . 2 1 Fire 91 | . 61 30 Melee 4 | . . 4 Ram . | . . . Kick . | . . . Crush . | . . . Escape Stasis . | . . . Rewire . | . . . Trap . | . . . Miscellaneous . | . . . Route ------- -11/Scrapyard -10/Materials (discovered 6 exits: [*Mat x3] / [*Min x2] / [*Sub]) -10/Subcaves (discovered 1 exit: [*Mat]) History --------- Turn | Location | Event 44 | -11/Scrapyard | Discovered new exit (range 15) 80 | -11/Scrapyard | Entered Materials 250 | -10/Materials | Discovered new exit (range 15) 312 | -10/Materials | Build established: Mutant 586 | -10/Materials | Discovered new exit (range 16) 728 | -10/Materials | Discovered new exit (range 16) 850 | -10/Materials | Discovered new exit (range 9) 1160 | -10/Materials | Discovered new exit (range 14) 1207 | -10/Materials | Repaired Lgt. Treads 1340 | -10/Materials | Discovered new exit (range 12) 1357 | -10/Materials | Entered Subcaves 1384 | -10/Subcaves | Core integrity fell below 50% 1582 | -10/Subcaves | Discovered new exit (range 6) 2343 | -10/Subcaves | Core integrity fell below 20% 2354 | -10/Subcaves | Destroyed by HV-WBR(R) with Subdweller Laser Last Messages --------------- 01609_ Lgt. Ion Engine fries itself beyond repair. 01609_ Acquired 1 matter. 01613_ Lgt. Assault Rifle fries itself beyond repair. 01631_ System corrupted: Matter fused (-9). 01641_ Acquired 13 matter. 01817_ BA5F2LUNT 9#BCXK0IAR2O#40IU0ALRII 01901_ System corrupted: Heat flow error (+177). 02008_ LPYBRCZJF9/TV= SYQAKFHVTY%G5# 02030_ Acquired 17 matter. 02196_ Subatomizers dissect the Flight Unit. 02207_ Subatomizers dissect the Flight Unit, destroying it. 02216_ System corrupted: Energy discharge (-52). 02218_ Subatomizers dissect the Sub. Power Source. 02256_ D5-KBP(u) tweaks Twisted Machinery. 02345_ HV-WBR(R) knocked back. 02350_ Ion Engine destroyed. Map ----- +----------------------------------------------------+ | ??????????????### ### ##???????? | | ??????????????### ###???????? | | ??????????????## ###???????? | | ??????????????## ##????????? | | ??????????????####"" ##????????? | | ??????????????####"" ##????????? | | ??????????????##""""" ###????????? | | ??????????????###""""####????????? | | ??????????????####" ""##?????????? | | ???????????????#### "###?????????? | | ??????????????#### "##?????????? | | ??????????????### "##?????????? | | ??????????????## ##?????????? | | ??#######?????### ####?????????? | | ?#########????## ######???????? | | ?###$$""##???### #######???????? | | ?##$ $"###??### ## ##???????? | | ?##$ $ ####### ###???????? | | ?## $"######" ####????????? | | ?## $ ## # " ####????????? | | ?##$ ## # ###????????? | | ?## $"## ## ##????????? | | ?##< ""## #" ## "###???????? | | ?##<< ""####R## # ""# ???????? | | ?## << <##< # # "" ???????? | | ?##<<<< R@ ## #"##???????? | | ?##<< < %<< ## ####???????? | | ?##<<<< <<<<### #####???????? | | ?###< <<#### #####?????????? | | ?############## #####??????????? | | ??###########??######????????????? | | ???????????????#####?????????????? | | ?????????????????????????????????? | | ?????????????????????????????????? | | ?????????????????????????????????? | | ?????????????????????????????????? | | ?????????????????????????????????? | | ?????????????????????????????????? | | ?????????????????????????????????? | | ?????????????????????????????????? | | ?????????????????????????????????? | | ?????????????????????????????????? | | ?????????????????????????????????? | | ?????????????????????????????????? | | ?????????????????????????????????? | | ?????????????????????????????????? | | ?????????????????????????????????? | | ?????????????????????????????????? | | ?????????????????????????????????? | | ?????????????????????????????????? | +----------------------------------------------------+ Best States ------------- Heat Dissipation 25 Energy Generation 10 Energy Capacity 250 Matter Stores 300 Matter Capacity 300 Sight Range 16 Robot Scan Range 14 Terrain Scan Range 14 Terrain Scan Density 10 Evasion (%) 40 Recoil Reduction 2 Item Schematics ----------------- None Robot Schematics ------------------ None Fabricated ------------ Nothing Alien Tech Used ----------------- None Achievements -------------- Factory Defaults Challenges ------------ None Game ------ Seed MetaMinesnifferTreads Manual? 0 Play Time 00:15:20 Cumulative 66.4 hours Start 2024.05.10 @ 21:41:57 End 2024.05.10 @ 21:55:53 Sessions 1 Manual Loads 0 Difficulty Rogue Special Mode None Game No. 101 Rogue 101 Adventurer 0 Explorer 0 Win Type - Total 1 Types 1/0/0/0/0/0/0/0/0 Lore% 32 Gallery% 39 Achievement% 30 Wizard Run 0 Options --------- Layout 1 ASCII 0 Keyboard 1 Movement Numpad Keybinds 0 Fullscreen 1 Font 24/Smallcaps Map View 50x35 Zoom Use 0% Tactical HUD 1 Map Filters NONE Filters NONE Steam 1 RUN: 7d69b22f-d763-4ee4-862d-7affa059b4eb